[Event "Saint Louis Masters"]
[Date "2024.12.03"]
[White "Oparin, Grigoriy"]
[Black "Heimann, Mark"]
[WhiteElo "2653"]
[BlackElo "2459"]
[Round "1.6"]
[Result "0-1"]
[TimeControl "5400+30"]

1. e4 {[%clk 01:30:57] [%emt 00:00:03]} e5 {[%clk 01:30:54] [%emt 00:00:06]} 2.
Nf3 {[%clk 01:31:21] [%emt 00:00:06]} Nc6 {[%clk 01:31:20] [%emt 00:00:04]} 3.
Bc4 {[%clk 01:31:46] [%emt 00:00:05]} Nf6 {[%clk 01:31:35] [%emt 00:00:16]} 4.
d3 {[%clk 01:32:06] [%emt 00:00:10]} h6 {[%clk 01:31:47] [%emt 00:00:17]} 5. O-O
{[%clk 01:31:25] [%emt 00:01:11]} Bc5 {[%clk 01:31:54] [%emt 00:00:23]} 6. Nc3
{[%clk 01:29:32] [%emt 00:02:23]} O-O {[%clk 01:31:59] [%emt 00:00:25]} 7. h3
{[%clk 01:28:06] [%emt 00:01:56]} Re8 {[%clk 01:30:31] [%emt 00:01:58]} 8. a3
{[%clk 01:25:23] [%emt 00:03:13]} a6 {[%clk 01:26:26] [%emt 00:04:35]} 9. Be3
{[%clk 01:24:55] [%emt 00:00:57]} d6 {[%clk 01:26:06] [%emt 00:00:51]} 10. Nd5
{[%clk 00:56:49] [%emt 00:28:37]} Be6 {[%clk 01:23:01] [%emt 00:03:34]} 11. Bxc5
{[%clk 00:52:27] [%emt 00:04:53]} dxc5 {[%clk 01:22:31] [%emt 00:01:00]} 12. Ne3
{[%clk 00:52:53] [%emt 00:00:03]} Bxc4 {[%clk 01:17:12] [%emt 00:05:50]} 13.
Nxc4 {[%clk 00:53:18] [%emt 00:00:04]} b5 {[%clk 01:16:15] [%emt 00:01:27]} 14.
Ne3 {[%clk 00:53:43] [%emt 00:00:05]} Nd4 {[%clk 01:14:18] [%emt 00:02:27]} 15.
b3 {[%clk 00:46:53] [%emt 00:07:20]} Nh7 {[%clk 01:10:46] [%emt 00:04:02]} 16.
Nxd4 {[%clk 00:40:12] [%emt 00:07:11]} cxd4 {[%clk 01:11:06] [%emt 00:00:10]}
17. Nf5 {[%clk 00:40:38] [%emt 00:00:05]} Nf8 {[%clk 01:07:54] [%emt 00:03:41]}
18. f4 {[%clk 00:37:31] [%emt 00:03:37]} Ng6 {[%clk 01:04:13] [%emt 00:04:11]}
19. Qg4 {[%clk 00:31:59] [%emt 00:06:02]} exf4 {[%clk 01:01:01] [%emt 00:03:42]}
20. Rxf4 {[%clk 00:31:35] [%emt 00:00:54]} c5 {[%clk 00:55:11] [%emt 00:06:20]}
21. h4 {[%clk 00:26:22] [%emt 00:05:43]} h5 {[%clk 00:55:00] [%emt 00:00:41]}
22. Qg3 {[%clk 00:26:48] [%emt 00:00:04]} Qc7 {[%clk 00:54:38] [%emt 00:00:52]}
23. Raf1 {[%clk 00:26:17] [%emt 00:01:00]} c4 {[%clk 00:44:02] [%emt 00:11:06]}
24. Qg5 {[%clk 00:21:36] [%emt 00:05:11]} Qd8 {[%clk 00:41:44] [%emt 00:02:49]}
25. Qxh5 {[%clk 00:21:26] [%emt 00:00:40]} Nxf4 {[%clk 00:42:05] [%emt
00:00:09]} 26. Rxf4 {[%clk 00:21:53] [%emt 00:00:03]} Qf6 {[%clk 00:37:23] [%emt
00:05:12]} 27. Qf3 {[%clk 00:17:53] [%emt 00:04:30]} cxb3 {[%clk 00:36:49] [%emt
00:01:04]} 28. cxb3 {[%clk 00:17:47] [%emt 00:00:36]} Kh8 {[%clk 00:30:05] [%emt
00:07:13]} 29. Ng3 {[%clk 00:14:51] [%emt 00:03:27]} Qh6 {[%clk 00:30:08] [%emt
00:00:27]} 30. Nf5 {[%clk 00:13:51] [%emt 00:01:31]} Qf6 {[%clk 00:30:32] [%emt
00:00:05]} 31. g3 {[%clk 00:05:38] [%emt 00:08:43]} Re5 {[%clk 00:26:20] [%emt
00:04:42]} 32. Kg2 {[%clk 00:05:54] [%emt 00:00:15]} Rae8 {[%clk 00:14:18] [%emt
00:12:32]} 33. Nxd4 {[%clk 00:06:00] [%emt 00:00:23]} Qd6 {[%clk 00:14:30] [%emt
00:00:18]} 34. Nf5 {[%clk 00:06:17] [%emt 00:00:13]} Qc6 {[%clk 00:11:16] [%emt
00:03:44]} 35. Ne3 {[%clk 00:04:54] [%emt 00:01:53]} Qc3 {[%clk 00:08:29] [%emt
00:03:17]} 36. Ng4 {[%clk 00:04:04] [%emt 00:01:20]} R5e7 {[%clk 00:07:09] [%emt
00:01:50]} 37. Rxf7 {[%clk 00:01:30] [%emt 00:03:04]} Rxf7 {[%clk 00:06:36]
[%emt 00:01:03]} 38. Qxf7 {[%clk 00:01:59] [%emt 00:00:02]} Qc2+ {[%clk
00:06:53] [%emt 00:00:13]} 39. Nf2 {[%clk 00:01:37] [%emt 00:00:52]} Rd8 {[%clk
00:06:10] [%emt 00:01:13]} 40. e5 {[%clk 00:01:25] [%emt 00:00:42]} Qc5 {[%clk
00:06:18] [%emt 00:00:22]} 41. Qh5+ {[%clk 00:00:37] [%emt 00:01:17]} Kg8 {[%clk
00:06:45] [%emt 00:00:03]} 42. b4 {[%clk 00:00:35] [%emt 00:00:32]} Qd5+ {[%clk
00:07:01] [%emt 00:00:13]} 43. Kg1 {[%clk 00:00:47] [%emt 00:00:18]} Rf8 {[%clk
00:07:08] [%emt 00:00:23]} 44. Qe2 {[%clk 00:00:45] [%emt 00:00:32]} Rf5 {[%clk
00:07:08] [%emt 00:00:30]} 45. Ne4 {[%clk 00:00:34] [%emt 00:00:41]} Rxe5 {[%clk
00:06:50] [%emt 00:00:48]} 46. Kh2 {[%clk 00:00:57] [%emt 00:00:07]} Qb3 {[%clk
00:05:55] [%emt 00:01:25]} 47. Qg4 {[%clk 00:00:38] [%emt 00:00:49]} Qxd3 {[%clk
00:03:45] [%emt 00:02:41]} 48. Qc8+ {[%clk 00:01:04] [%emt 00:00:04]} Kh7 {[%clk
00:03:56] [%emt 00:00:18]} 49. Ng5+ {[%clk 00:01:09] [%emt 00:00:25]} Kg6 {[%clk
00:03:56] [%emt 00:00:30]} 50. Qc6+ {[%clk 00:00:51] [%emt 00:00:49]} Kh5 {[%clk
00:04:17] [%emt 00:00:08]} 51. Nf3 {[%clk 00:00:33] [%emt 00:00:48]} Re2+ {[%clk
00:04:27] [%emt 00:00:20]} 52. Kh1 {[%clk 00:00:55] [%emt 00:00:08]} Qb1+ {[%clk
00:04:19] [%emt 00:00:38]} 53. Ng1 {[%clk 00:01:22] [%emt 00:00:04]} Qe4+ {[%clk
00:04:45] [%emt 00:00:04]} 0-1

[Site "Europe Echecs"]

[Event "Saint Louis Masters"]
[Date "2024.12.03"]
[White "Stearman, Josiah"]
[Black "Aryan Chopra"]
[WhiteElo "2443"]
[BlackElo "2637"]
[Round "1.7"]
[Result "1/2-1/2"]
[TimeControl "5400+30"]

1. e4 {[%clk 01:30:56] [%emt 00:00:03]} c5 {[%clk 01:30:26] [%emt 00:00:34]} 2.
Nf3 {[%clk 01:31:16] [%emt 00:00:10]} e6 {[%clk 01:30:36] [%emt 00:00:21]} 3. c3
{[%clk 01:30:22] [%emt 00:01:24]} Nf6 {[%clk 01:30:52] [%emt 00:00:13]} 4. e5
{[%clk 01:29:56] [%emt 00:00:56]} Nd5 {[%clk 01:31:17] [%emt 00:00:05]} 5. d4
{[%clk 01:29:41] [%emt 00:00:45]} cxd4 {[%clk 01:31:38] [%emt 00:00:09]} 6. cxd4
{[%clk 01:29:33] [%emt 00:00:38]} d6 {[%clk 01:31:57] [%emt 00:00:11]} 7. Bc4
{[%clk 01:28:02] [%emt 00:02:01]} Be7 {[%clk 01:32:15] [%emt 00:00:12]} 8. O-O
{[%clk 01:25:37] [%emt 00:02:55]} O-O {[%clk 01:32:35] [%emt 00:00:10]} 9. Bxd5
{[%clk 01:25:02] [%emt 00:01:05]} exd5 {[%clk 01:32:57] [%emt 00:00:07]} 10. Nc3
{[%clk 01:25:28] [%emt 00:00:04]} Be6 {[%clk 01:29:18] [%emt 00:04:09]} 11. Qb3
{[%clk 01:19:18] [%emt 00:06:40]} b6 {[%clk 01:14:54] [%emt 00:14:55]} 12. Nxd5
{[%clk 00:49:53] [%emt 00:29:54]} Kh8 {[%clk 01:08:34] [%emt 00:06:50]} 13. Rd1
{[%clk 00:50:14] [%emt 00:00:09]} a6 {[%clk 00:35:36] [%emt 00:33:29]} 14. Ne1
{[%clk 00:38:45] [%emt 00:11:59]} Qd7 {[%clk 00:23:14] [%emt 00:12:53]} 15. Qf3
{[%clk 00:37:42] [%emt 00:01:32]} Bg4 {[%clk 00:23:38] [%emt 00:00:07]} 16. Qe4
{[%clk 00:35:48] [%emt 00:02:24]} Bxd1 {[%clk 00:23:56] [%emt 00:00:11]} 17.
Nxe7 {[%clk 00:36:09] [%emt 00:00:09]} Ra7 {[%clk 00:21:28] [%emt 00:02:59]} 18.
Nf5 {[%clk 00:34:04] [%emt 00:02:34]} d5 {[%clk 00:14:16] [%emt 00:07:42]} 19.
Qf4 {[%clk 00:34:26] [%emt 00:00:08]} Qe6 {[%clk 00:14:11] [%emt 00:00:35]} 20.
Bd2 {[%clk 00:32:50] [%emt 00:02:07]} Bh5 {[%clk 00:12:41] [%emt 00:01:59]} 21.
Rc1 {[%clk 00:27:28] [%emt 00:05:52]} Bg6 {[%clk 00:12:33] [%emt 00:00:37]} 22.
g4 {[%clk 00:24:44] [%emt 00:03:15]} a5 {[%clk 00:07:31] [%emt 00:05:33]} 23.
Nf3 {[%clk 00:24:32] [%emt 00:00:41]} f6 {[%clk 00:07:39] [%emt 00:00:22]} 24.
N3h4 {[%clk 00:16:57] [%emt 00:08:05]} Nc6 {[%clk 00:05:54] [%emt 00:02:15]} 25.
Nxg6+ {[%clk 00:14:08] [%emt 00:03:19]} hxg6 {[%clk 00:06:20] [%emt 00:00:04]}
26. Nh4 {[%clk 00:14:33] [%emt 00:00:05]} Kh7 {[%clk 00:02:51] [%emt 00:03:59]}
27. g5 {[%clk 00:14:43] [%emt 00:00:21]} Nxd4 {[%clk 00:01:25] [%emt 00:01:56]}
28. Qxd4 {[%clk 00:13:56] [%emt 00:01:17]} fxe5 {[%clk 00:01:53] [%emt
00:00:02]} 29. Re1 {[%clk 00:10:31] [%emt 00:03:55]} Re7 {[%clk 00:02:19] [%emt
00:00:03]} 30. Qe3 {[%clk 00:09:55] [%emt 00:01:06]} Qg4+ {[%clk 00:00:37] [%emt
00:02:13]} 31. Qg3 {[%clk 00:09:50] [%emt 00:00:35]} 1/2-1/2

[Site "Europe Echecs"]

[Event "Saint Louis Masters"]
[Date "2024.12.03"]
[White "Hakobyan, Aram"]
[Black "Bilych, Oleksii"]
[WhiteElo "2625"]
[BlackElo "2435"]
[Round "1.8"]
[Result "1-0"]
[TimeControl "5400+30"]

1. d4 {[%clk 01:30:17] [%emt 00:00:42]} Nf6 {[%clk 01:30:52] [%emt 00:00:08]} 2.
c4 {[%clk 01:30:31] [%emt 00:00:16]} e6 {[%clk 01:31:17] [%emt 00:00:06]} 3. Nf3
{[%clk 01:30:47] [%emt 00:00:13]} Bb4+ {[%clk 01:31:39] [%emt 00:00:07]} 4. Bd2
{[%clk 01:29:25] [%emt 00:01:53]} Be7 {[%clk 01:32:01] [%emt 00:00:08]} 5. Nc3
{[%clk 01:29:32] [%emt 00:00:22]} O-O {[%clk 01:32:22] [%emt 00:00:10]} 6. Bf4
{[%clk 01:28:29] [%emt 00:01:32]} Nh5 {[%clk 01:32:42] [%emt 00:00:10]} 7. Bd2
{[%clk 01:26:53] [%emt 00:02:06]} d5 {[%clk 01:33:05] [%emt 00:00:08]} 8. e3
{[%clk 01:26:34] [%emt 00:00:50]} Nf6 {[%clk 01:33:15] [%emt 00:00:20]} 9. cxd5
{[%clk 01:26:52] [%emt 00:00:12]} exd5 {[%clk 01:33:24] [%emt 00:00:20]} 10. Bd3
{[%clk 01:27:15] [%emt 00:00:06]} Re8 {[%clk 01:28:51] [%emt 00:05:04]} 11. O-O
{[%clk 01:27:15] [%emt 00:00:30]} c5 {[%clk 01:27:40] [%emt 00:01:41]} 12. dxc5
{[%clk 01:26:34] [%emt 00:01:11]} Bxc5 {[%clk 01:28:03] [%emt 00:00:07]} 13. Rc1
{[%clk 01:18:01] [%emt 00:09:03]} Nc6 {[%clk 01:23:05] [%emt 00:05:28]} 14. h3
{[%clk 01:06:32] [%emt 00:11:58]} d4 {[%clk 01:17:41] [%emt 00:05:55]} 15. exd4
{[%clk 01:06:17] [%emt 00:00:45]} Nxd4 {[%clk 01:17:45] [%emt 00:00:26]} 16. Bg5
{[%clk 00:50:15] [%emt 00:16:32]} Ne6 {[%clk 01:10:19] [%emt 00:07:56]} 17. Qc2
{[%clk 00:37:20] [%emt 00:13:24]} Nxg5 {[%clk 01:05:15] [%emt 00:05:35]} 18.
Nxg5 {[%clk 00:37:40] [%emt 00:00:11]} h6 {[%clk 01:02:11] [%emt 00:03:33]} 19.
Bh7+ {[%clk 00:36:34] [%emt 00:01:35]} Kf8 {[%clk 01:02:33] [%emt 00:00:09]} 20.
Nxf7 {[%clk 00:33:22] [%emt 00:03:42]} Kxf7 {[%clk 01:01:40] [%emt 00:01:23]}
21. Rfd1 {[%clk 00:25:21] [%emt 00:08:31]} Bxf2+ {[%clk 00:43:15] [%emt
00:18:55]} 22. Kh1 {[%clk 00:21:49] [%emt 00:04:02]} Qb6 {[%clk 00:30:53] [%emt
00:12:52]} 23. Bg6+ {[%clk 00:21:29] [%emt 00:00:50]} Kf8 {[%clk 00:29:27] [%emt
00:01:56]} 24. Bxe8 {[%clk 00:21:40] [%emt 00:00:18]} Bxh3 {[%clk 00:29:40]
[%emt 00:00:18]} 25. Rf1 {[%clk 00:18:46] [%emt 00:03:23]} Bd4 {[%clk 00:25:30]
[%emt 00:04:39]} 26. Nd5 {[%clk 00:18:14] [%emt 00:01:04]} Qxb2 {[%clk 00:23:53]
[%emt 00:02:08]} 27. Nc7 {[%clk 00:16:28] [%emt 00:02:15]} Bxg2+ {[%clk
00:19:21] [%emt 00:05:02]} 28. Qxg2 {[%clk 00:14:55] [%emt 00:02:03]} Qxg2+
{[%clk 00:19:44] [%emt 00:00:07]} 29. Kxg2 {[%clk 00:15:22] [%emt 00:00:03]}
Rxe8 {[%clk 00:20:07] [%emt 00:00:07]} 30. Nxe8 {[%clk 00:15:48] [%emt
00:00:05]} Kxe8 {[%clk 00:20:33] [%emt 00:00:04]} 31. Rc7 {[%clk 00:15:15] [%emt
00:01:01]} Kf8 {[%clk 00:17:19] [%emt 00:03:46]} 32. Rxb7 {[%clk 00:15:27] [%emt
00:00:17]} Kg8 {[%clk 00:17:23] [%emt 00:00:26]} 33. Rd1 {[%clk 00:15:23] [%emt
00:00:34]} Bb6 {[%clk 00:17:42] [%emt 00:00:11]} 34. a4 {[%clk 00:15:08] [%emt
00:00:45]} Ne4 {[%clk 00:17:40] [%emt 00:00:32]} 35. Rdd7 {[%clk 00:15:21] [%emt
00:00:17]} Nc5 {[%clk 00:18:00] [%emt 00:00:09]} 36. Rxg7+ {[%clk 00:15:42]
[%emt 00:00:09]} Kf8 {[%clk 00:18:20] [%emt 00:00:11]} 37. Rbf7+ {[%clk
00:15:55] [%emt 00:00:17]} Ke8 {[%clk 00:18:46] [%emt 00:00:04]} 38. a5 {[%clk
00:16:06] [%emt 00:00:19]} 1-0

[Site "Europe Echecs"]

[Event "Saint Louis Masters"]
[Date "2024.12.03"]
[White "Chen, Ryo"]
[Black "Mishra, Abhimanyu"]
[WhiteElo "2419"]
[BlackElo "2616"]
[Round "1.9"]
[Result "1/2-1/2"]
[TimeControl "5400+30"]

1. e4 {[%clk 01:30:58] [%emt 00:00:01]} e6 {[%clk 01:30:57] [%emt 00:00:04]} 2.
d4 {[%clk 01:31:20] [%emt 00:00:08]} d5 {[%clk 01:31:19] [%emt 00:00:08]} 3. Nd2
{[%clk 01:31:43] [%emt 00:00:07]} c5 {[%clk 01:31:28] [%emt 00:00:21]} 4. Ngf3
{[%clk 01:32:02] [%emt 00:00:11]} cxd4 {[%clk 01:31:21] [%emt 00:00:36]} 5. Nxd4
{[%clk 01:32:20] [%emt 00:00:12]} Nc6 {[%clk 01:31:26] [%emt 00:00:26]} 6. Bb5
{[%clk 01:32:47] [%emt 00:00:03]} Bd7 {[%clk 01:31:27] [%emt 00:00:29]} 7. Nxc6
{[%clk 01:33:12] [%emt 00:00:04]} bxc6 {[%clk 01:31:49] [%emt 00:00:09]} 8. Bd3
{[%clk 01:33:31] [%emt 00:00:11]} Bd6 {[%clk 01:32:01] [%emt 00:00:17]} 9. Qe2
{[%clk 01:33:36] [%emt 00:00:24]} Qc7 {[%clk 01:30:34] [%emt 00:01:59]} 10. Nf3
{[%clk 01:31:43] [%emt 00:02:22]} dxe4 {[%clk 01:30:42] [%emt 00:00:23]} 11.
Qxe4 {[%clk 01:27:47] [%emt 00:04:26]} Nf6 {[%clk 01:30:32] [%emt 00:00:40]} 12.
Qh4 {[%clk 01:25:52] [%emt 00:02:23]} h6 {[%clk 01:30:53] [%emt 00:00:11]} 13.
Nd2 {[%clk 01:07:38] [%emt 00:18:43]} Nd5 {[%clk 01:14:34] [%emt 00:16:49]} 14.
Nc4 {[%clk 01:04:32] [%emt 00:03:34]} Bb4+ {[%clk 01:02:39] [%emt 00:12:26]} 15.
c3 {[%clk 00:37:51] [%emt 00:27:12]} Nxc3 {[%clk 00:49:08] [%emt 00:14:01]} 16.
a3 {[%clk 00:35:46] [%emt 00:02:35]} Be7 {[%clk 00:48:03] [%emt 00:01:34]} 17.
Qg4 {[%clk 00:32:12] [%emt 00:04:03]} Nd5 {[%clk 00:38:48] [%emt 00:09:47]} 18.
Qxg7 {[%clk 00:32:31] [%emt 00:00:11]} Bf6 {[%clk 00:37:45] [%emt 00:01:33]} 19.
Qg4 {[%clk 00:32:42] [%emt 00:00:19]} Ke7 {[%clk 00:32:52] [%emt 00:05:25]} 20.
O-O {[%clk 00:26:56] [%emt 00:06:14]} Rag8 {[%clk 00:29:48] [%emt 00:03:35]}
1/2-1/2

[Site "Europe Echecs"]

[Event "Saint Louis Masters"]
[Date "2024.12.03"]
[White "Theodorou, Nikolas"]
[Black "Chasin, Nico"]
[WhiteElo "2600"]
[BlackElo "2417"]
[Round "1.10"]
[Result "1/2-1/2"]
[TimeControl "5400+30"]

1. d4 {[%clk 01:30:55] [%emt 00:00:04]} Nf6 {[%clk 01:30:42] [%emt 00:00:18]} 2.
c4 {[%clk 01:31:19] [%emt 00:00:07]} e6 {[%clk 01:31:03] [%emt 00:00:08]} 3. Nf3
{[%clk 01:31:42] [%emt 00:00:07]} h6 {[%clk 01:31:19] [%emt 00:00:15]} 4. a3
{[%clk 01:29:37] [%emt 00:02:35]} d5 {[%clk 01:31:37] [%emt 00:00:11]} 5. Nc3
{[%clk 01:30:02] [%emt 00:00:06]} c6 {[%clk 01:32:04] [%emt 00:00:03]} 6. e3
{[%clk 01:24:08] [%emt 00:06:24]} Nbd7 {[%clk 01:31:05] [%emt 00:01:28]} 7. Qc2
{[%clk 01:19:49] [%emt 00:04:50]} Bd6 {[%clk 01:29:29] [%emt 00:02:05]} 8. Be2
{[%clk 01:14:32] [%emt 00:05:47]} O-O {[%clk 01:26:56] [%emt 00:03:03]} 9. O-O
{[%clk 01:14:36] [%emt 00:00:27]} e5 {[%clk 01:25:46] [%emt 00:01:40]} 10. cxd5
{[%clk 01:13:50] [%emt 00:01:15]} cxd5 {[%clk 01:26:01] [%emt 00:00:15]} 11. Nb5
{[%clk 01:06:16] [%emt 00:08:05]} Bb8 {[%clk 01:25:32] [%emt 00:00:59]} 12. dxe5
{[%clk 01:04:39] [%emt 00:02:08]} Nxe5 {[%clk 01:25:29] [%emt 00:00:32]} 13.
Nxe5 {[%clk 01:00:35] [%emt 00:04:33]} Bxe5 {[%clk 01:25:52] [%emt 00:00:07]}
14. Bd2 {[%clk 01:00:43] [%emt 00:00:23]} a6 {[%clk 01:21:01] [%emt 00:05:20]}
15. Bc3 {[%clk 00:56:19] [%emt 00:04:54]} Bb8 {[%clk 01:19:36] [%emt 00:01:55]}
16. Bxf6 {[%clk 00:54:25] [%emt 00:02:25]} Qxf6 {[%clk 01:19:13] [%emt
00:00:52]} 17. Nd4 {[%clk 00:54:53] [%emt 00:00:03]} Qd6 {[%clk 01:11:37] [%emt
00:08:06]} 18. g3 {[%clk 00:55:09] [%emt 00:00:13]} Be6 {[%clk 01:12:04] [%emt
00:00:02]} 19. Rac1 {[%clk 00:50:31] [%emt 00:05:08]} Ba7 {[%clk 01:12:22] [%emt
00:00:13]} 20. Qc7 {[%clk 00:48:28] [%emt 00:02:33]} Qxc7 {[%clk 01:09:54] [%emt
00:02:57]} 21. Rxc7 {[%clk 00:48:17] [%emt 00:00:41]} Bxd4 {[%clk 01:10:23]
[%emt 00:00:02]} 22. exd4 {[%clk 00:48:39] [%emt 00:00:09]} Rab8 {[%clk
01:10:51] [%emt 00:00:02]} 23. Rfc1 {[%clk 00:46:07] [%emt 00:03:02]} Rfc8
{[%clk 01:10:12] [%emt 00:01:08]} 24. f4 {[%clk 00:39:38] [%emt 00:07:00]} Kf8
{[%clk 01:08:09] [%emt 00:02:31]} 25. Bf3 {[%clk 00:37:56] [%emt 00:02:13]} Rxc7
{[%clk 01:07:24] [%emt 00:01:16]} 26. Rxc7 {[%clk 00:38:23] [%emt 00:00:02]} Ke8
{[%clk 01:07:38] [%emt 00:00:17]} 27. Kf2 {[%clk 00:29:23] [%emt 00:09:30]} Kd8
{[%clk 01:07:49] [%emt 00:00:19]} 28. Rc3 {[%clk 00:29:48] [%emt 00:00:05]} Kd7
{[%clk 01:07:34] [%emt 00:00:45]} 29. Rb3 {[%clk 00:28:30] [%emt 00:01:48]} Kd6
{[%clk 01:06:12] [%emt 00:01:51]} 30. Ke3 {[%clk 00:28:58] [%emt 00:00:02]} Bd7
{[%clk 01:06:30] [%emt 00:00:13]} 31. Kd2 {[%clk 00:28:35] [%emt 00:00:53]} b6
{[%clk 01:06:35] [%emt 00:00:25]} 32. Bh5 {[%clk 00:28:30] [%emt 00:00:35]} g6
{[%clk 01:06:07] [%emt 00:00:59]} 33. Be2 {[%clk 00:28:56] [%emt 00:00:03]} a5
{[%clk 01:06:34] [%emt 00:00:03]} 34. h4 {[%clk 00:27:34] [%emt 00:01:51]} h5
{[%clk 01:06:48] [%emt 00:00:17]} 35. Bd3 {[%clk 00:27:00] [%emt 00:01:03]} Bf5
{[%clk 01:06:54] [%emt 00:00:25]} 36. Bb5 {[%clk 00:24:19] [%emt 00:03:11]} Rc8
{[%clk 01:06:11] [%emt 00:01:12]} 37. Rc3 {[%clk 00:24:47] [%emt 00:00:03]} Rxc3
{[%clk 01:06:00] [%emt 00:00:41]} 38. Kxc3 {[%clk 00:25:14] [%emt 00:00:02]} Bd7
{[%clk 01:06:22] [%emt 00:00:09]} 39. Bd3 {[%clk 00:24:37] [%emt 00:01:07]} f5
{[%clk 01:06:41] [%emt 00:00:11]} 40. b4 {[%clk 00:23:26] [%emt 00:01:40]} Kc7
{[%clk 01:06:50] [%emt 00:00:22]} 41. Be2 {[%clk 00:23:42] [%emt 00:00:13]} Kd6
{[%clk 01:07:06] [%emt 00:00:14]} 42. Bf3 {[%clk 00:22:40] [%emt 00:01:33]} Bb5
{[%clk 01:07:02] [%emt 00:00:33]} 43. Bd1 {[%clk 00:23:01] [%emt 00:00:09]} a4
{[%clk 01:07:23] [%emt 00:00:09]} 44. Bf3 {[%clk 00:22:32] [%emt 00:00:58]} Ke6
{[%clk 01:07:46] [%emt 00:00:08]} 45. Kd2 {[%clk 00:22:41] [%emt 00:00:21]} Kd6
{[%clk 01:08:05] [%emt 00:00:10]} 46. Bd1 {[%clk 00:22:41] [%emt 00:00:31]} Ke6
{[%clk 01:08:21] [%emt 00:00:14]} 47. Bf3 {[%clk 00:21:53] [%emt 00:01:18]} Kd6
{[%clk 01:08:45] [%emt 00:00:07]} 48. Bd1 {[%clk 00:21:23] [%emt 00:00:59]}
1/2-1/2

[Site "Europe Echecs"]